bitfinex/quotes_ETHUSD_20220219
["timestamp","ask_amount","ask_price","bid_price","bid_amount"]
[1645299446356,7.2736,2749.7,2749.3,1.54415029]
[1645299449118,8.18357,2749.7,2749.3,1.54415029]
[1645299453156,8.18357,2749.7,2748.9,3.5]
[1645299455406,0.54049539,2749.5,2748.9,4.10550848]
[1645299455608,0.54049539,2749.5,2748.7,1.92392738]
[1645299455807,0.54049539,2749.5,2748.7,2.13965]
[1645299456007,0.54049539,2749.5,2748.8,3.5]
[1645299456809,0.54049539,2749.5,2748.9,0.64049537]
[1645299457207,9.32877,2749.7,2748.9,0.64049537]
[1645299457410,8.4188,2749.7,2748.9,0.64049537]
[1645299457614,8.4188,2749.7,2749.0,3.5]
[1645299457811,8.4188,2749.7,2748.9,0.64049537]
[1645299458010,8.4188,2749.7,2749.0,3.5]
[1645299459262,8.4188,2749.7,2748.9,0.64049537]
[1645299460371,8.4188,2749.7,2749.0,3.5]
[1645299462509,8.4188,2749.7,2749.0,4.40985]
[1645299462911,8.4188,2749.7,2749.1,1.54543886]
[1645299463307,7.2736,2749.7,2749.1,1.54543886]
[1645299464510,7.2736,2749.7,2749.1,1.5441263]
[1645299465616,7.27264653,2749.7,2749.1,1.5441263]
[1645299467261,7.27264653,2749.7,2749.4,0.62630805]
[1645299478414,8.18261653,2749.7,2749.4,0.62630805]
[1645299480520,8.18261653,2749.7,2749.1,0.69422738]
[1645299481266,8.18261653,2749.7,2749.0,0.69422738]
[1645299481662,8.18261653,2749.7,2749.3,0.56266708]
[1645299484561,8.18261653,2749.7,2749.4,1.54537664]
[1645299486105,8.18261653,2749.7,2749.4,1.54413439]
[1645299486906,7.27264653,2749.7,2749.4,1.54413439]
[1645299492264,6.18724894,2749.7,2749.4,5.04413439]
[1645299492723,4.53904993,2749.7,2749.5,0.522]
[1645299493020,4.53904993,2749.7,2749.6,3.5]
[1645299493321,4.53904993,2749.7,2749.6,5.0199]
[1645299493322,4.45006295,2749.7,2749.6,5.0199]
[1645299495521,4.45006295,2749.7,2749.6,5.71208293]
[1645299497564,4.45006295,2749.7,2749.6,5.0199]
[1645299497761,1.44749147,2749.7,2749.6,5.0199]
[1645299498562,1.44749147,2749.7,2749.6,5.71161636]
[1645299501215,1.44749147,2749.7,2749.6,5.0199]
[1645299501424,1.1311,2750.8,2749.6,5.0199]
[1645299501425,9.17950142,2751.5,2749.8,8.0]
[1645299501626,1.8188637,2752.1,2750.3,0.69106923]
[1645299501627,3.0483,2752.1,2750.3,0.69106923]
[1645299501827,1.7808,2752.4,2751.3,5.0]
[1645299502024,5.293,2752.8,2751.4,4.022]
[1645299502220,2.2447,2752.8,2751.5,5.3]
[1645299502416,2.2447,2752.8,2752.1,0.9086]
[1645299502617,0.5,2753.0,2751.9,0.522]
[1645299502820,1.245,2753.1,2752.0,0.9086703]
[1645299502821,3.4929,2753.1,2752.0,0.9086703]
[1645299503215,2.7872,2753.5,2752.0,4.4086703]
[1645299503418,2.7872,2753.5,2752.1,0.822]
[1645299503615,2.7872,2753.5,2752.5,0.90854]
[1645299504059,2.7872,2753.5,2752.6,3.5]
[1645299504260,2.7872,2753.5,2753.0,0.65292636]
[1645299504466,2.7872,2753.5,2751.6,1.8175632]
[1645299504467,0.00201298,2753.1,2751.6,1.8175632]
[1645299504668,0.91102298,2753.1,2751.5,1.1462]
[1645299504866,0.91102298,2753.1,2751.5,4.6462]
[1645299504867,3.99645773,2753.0,2751.5,4.6462]
[1645299505062,3.1749,2753.0,2750.9,4.58158]
[1645299505267,3.7749,2753.0,2750.9,3.58158]
[1645299505563,0.48984797,2751.8,2751.2,0.53064877]
[1645299506066,0.48984797,2751.8,2751.3,1.54417642]
[1645299506363,0.00336358,2752.1,2751.3,5.04417642]
[1645299506564,0.00336358,2752.1,2751.3,3.5]
[1645299506761,0.0319,2752.5,2751.3,3.5]
[1645299506963,0.0319,2752.5,2751.2,0.53064877]
[1645299506964,0.00336373,2751.8,2751.2,0.53064877]
[1645299507614,0.91254373,2751.8,2751.2,0.53064877]
[1645299507811,0.90918,2751.8,2751.2,0.53064877]
[1645299508214,0.00336383,2751.6,2751.2,0.53064877]
[1645299509113,0.90918,2751.8,2751.2,0.53064877]
[1645299509313,0.00336388,2751.5,2751.2,0.53064877]
[1645299510315,0.90918,2751.8,2751.2,0.53064877]
[1645299510516,0.0033639,2751.5,2751.2,0.53064877]
[1645299511566,0.90918,2751.8,2751.2,0.53064877]
[1645299511961,0.0033639,2751.5,2751.2,0.53064877]
[1645299512165,0.01293039,2752.7,2751.3,22.57]
[1645299512371,1.0,2753.8,2752.4,5.0]
[1645299512372,0.1368,2753.8,2752.4,5.0]
[1645299512570,4.20939704,2754.4,2752.9,11.07]
[1645299512571,0.18949704,2754.4,2752.9,11.07]
[1645299512768,0.18949704,2754.4,2752.5,5.56557607]
[1645299512769,3.03542,2754.7,2753.0,6.56660263]
[1645299512970,6.51885561,2754.7,2753.0,0.00102656]
[1645299513165,0.60780582,2754.2,2753.5,0.54079361]
[1645299513362,0.60780582,2754.2,2753.0,0.00102656]
[1645299513363,0.60780582,2754.2,2753.0,0.90954656]
[1645299514066,0.60780582,2754.2,2753.1,3.5]
[1645299514366,0.60780582,2754.2,2753.2,0.57627224]
[1645299515022,0.90855,2754.1,2753.2,0.57627224]
[1645299515222,0.48079634,2753.7,2753.2,0.57627224]
[1645299515425,9.13704,2754.4,2753.8,0.81159268]
[1645299515426,7.32,2754.4,2753.8,0.81159268]
[1645299515625,7.32,2754.4,2752.5,1.43069]
[1645299515626,5.0,2754.2,2752.5,1.43069]
[1645299515823,5.0,2754.2,2752.6,1.54353367]
[1645299515824,2.27096,2754.1,2752.6,1.54353367]
[1645299516025,0.89924627,2753.7,2752.4,1.54353367]
[1645299516222,0.89924627,2753.7,2752.3,3.5]
[1645299516422,0.50162543,2753.1,2752.4,2.17574666]
[1645299516622,0.00334901,2753.2,2752.4,0.63212074]
[1645299517420,2.1504,2753.8,2752.4,0.63212074]
[1645299517421,3.0592234,2753.8,2752.4,0.63212074]
[1645299517631,2.40482332,2753.4,2752.4,0.63212074]
[1645299517824,0.00312963,2752.9,2752.4,0.63212074]
[1645299518893,3.5,2753.6,2752.5,1.54361299]
[1645299519086,0.00312969,2752.8,2752.5,1.54361299]
[1645299519984,3.5,2753.7,2752.5,1.54361299]
[1645299520189,2.1504,2753.8,2753.3,0.47969896]
[1645299520387,0.90864,2753.8,2753.3,0.47969896]
[1645299520783,5.6408,2754.2,2753.3,0.47969896]
[1645299520784,3.5,2754.1,2753.3,0.47969896]
[1645299520986,2.1408,2754.2,2753.3,0.47969896]
[1645299521387,0.00312925,2753.8,2753.5,0.9083579]
[1645299522385,0.00312925,2753.8,2753.3,1.38803896]
[1645299522386,0.58386482,2754.4,2753.3,3.20467366]
[1645299522610,1.49227482,2754.4,2753.4,1.54315764]
[1645299522814,0.00314409,2753.8,2753.4,1.54315764]
[1645299523617,2.40082482,2754.4,2753.4,1.54315764]
[1645299523811,0.01257456,2754.2,2753.8,0.6386533]
[1645299524612,0.92105456,2754.2,2753.8,0.6386533]
[1645299524813,0.90848,2754.2,2753.8,0.6386533]
[1645299525013,0.00314394,2754.1,2753.8,0.6386533]
[1645299525419,0.00314394,2754.1,2753.2,2.33872]
[1645299525616,0.00314394,2754.1,2753.3,1.54318173]
[1645299526017,0.90848,2754.2,2753.3,1.54318173]
[1645299526272,0.00314304,2753.8,2753.3,1.54318173]
[1645299526662,0.90848,2754.2,2753.8,0.00628608]
[1645299527562,0.80848,2754.2,2753.8,0.00628608]
[1645299528564,0.00196361,2754.1,2753.8,0.00628608]
[1645299529565,0.80848,2754.2,2753.8,0.00628608]
[1645299529767,0.00334855,2754.1,2753.8,0.00628608]
[1645299530213,0.00334855,2754.1,2753.8,0.65746438]
[1645299530617,0.00334855,2754.1,2753.8,5.65746438]
[1645299530811,0.80848,2754.2,2753.8,5.65746438]
[1645299531012,0.80848,2754.2,2753.9,1.54311525]
[1645299531013,0.00334855,2754.1,2753.9,1.54311525]
[1645299531413,0.00334855,2754.1,2753.8,5.65746438]
[1645299533119,0.80848,2754.2,2753.8,5.65746438]
[1645299534163,0.80848,2754.2,2753.8,5.00628608]
[1645299534365,0.80848,2754.2,2753.9,1.54308476]
[1645299535164,2.37618807,2754.1,2753.8,5.00628608]
[1645299535364,0.7301201,2754.1,2753.8,5.00628608]
[1645299535768,0.80848,2754.2,2753.8,5.00628608]
[1645299537166,0.00334573,2754.1,2753.8,5.00628608]
[1645299538011,0.80848,2754.2,2753.8,5.00628608]
[1645299538214,0.00334576,2754.1,2753.8,5.00628608]
[1645299539114,0.80848,2754.2,2753.8,5.00628608]
[1645299539312,0.00334576,2754.1,2753.8,5.00628608]
[1645299539513,0.00334576,2754.1,2753.9,1.54309882]
[1645299540414,0.90838,2754.5,2753.9,1.54309882]
[1645299540617,0.00334573,2754.1,2753.9,1.54309882]
[1645299541459,0.90838,2754.5,2753.9,2.12119819]
[1645299541658,0.90838,2754.5,2754.0,1.54309882]
[1645299541861,0.00321376,2754.1,2754.0,1.54309882]
[1645299542260,0.90838,2754.5,2754.1,0.00642752]
[1645299542457,0.90838,2754.5,2754.2,1.54309882]
[1645299543768,5.93561,2755.1,2754.3,3.5]
[1645299543769,0.90828,2754.8,2754.3,3.5]
[1645299543963,2.1142,2755.1,2754.4,1.54309882]
[1645299544163,7.32,2755.6,2754.5,1.54309882]
[1645299544360,7.32,2755.6,2754.6,1.54309882]
[1645299544561,7.32,2755.6,2754.7,1.54309882]
[1645299544761,0.50824072,2755.2,2754.8,1.54309882]
[1645299545015,0.50824072,2755.2,2754.4,0.48495211]
[1645299545414,0.00334523,2755.1,2754.5,1.54274957]
[1645299545616,0.90823,2755.0,2754.5,1.54274957]
[1645299545816,0.90823,2755.0,2754.1,0.00642752]
[1645299546017,0.90823,2755.0,2754.2,1.54287062]
[1645299546620,0.91172543,2754.7,2754.2,1.54287062]
[1645299546818,1.42941384,2754.7,2754.2,1.54287062]
[1645299547620,1.42606841,2754.7,2754.2,1.54287062]
[1645299547820,0.00334551,2754.6,2754.2,1.54287062]
[1645299548877,0.90838,2754.7,2754.2,1.54287062]
[1645299549078,0.00334553,2754.5,2754.2,1.54287062]
[1645299549267,0.00334553,2754.5,2754.3,1.54287062]
[1645299549467,0.00334553,2754.5,2754.4,1.54287062]
[1645299549670,0.00334553,2754.5,2754.2,1.54287062]
[1645299549872,0.86172553,2754.7,2754.2,1.54287062]
[1645299550270,0.91170556,2754.5,2754.2,1.54287062]
[1645299551070,0.90836,2754.5,2754.2,1.54287062]
[1645299555116,0.50809322,2754.4,2754.2,1.54287062]
[1645299555517,1.42953794,2754.5,2754.4,1.01618643]
[1645299556364,1.42953794,2754.5,2754.4,2.55914974]
[1645299556762,0.90836,2754.5,2754.4,2.55914974]
[1645299556968,0.00334544,2754.6,2754.4,2.55914974]
[1645299557164,0.90825,2754.7,2754.5,1.54296331]
[1645299558564,0.9115928,2754.7,2754.5,1.54296331]
[1645299559569,0.90825,2754.7,2754.4,1.01618643]
[1645299559769,0.9115928,2754.7,2754.4,1.01618643]
[1645299560827,0.90825,2754.7,2754.4,1.01618643]
[1645299561019,0.91159282,2754.7,2754.4,1.01618643]
[1645299562019,0.90825,2754.7,2754.4,1.01618643]
[1645299562225,0.91159282,2754.7,2754.4,1.01618643]
[1645299563120,0.90825,2754.7,2754.4,1.01618643]
[1645299563521,0.91159282,2754.7,2754.4,1.01618643]
[1645299564365,0.90825,2754.7,2754.4,1.01618643]
[1645299564565,0.91159282,2754.7,2754.4,1.01618643]
[1645299565667,0.90825,2754.7,2754.4,1.01618643]
[1645299565866,0.90825,2754.7,2754.4,0.38652389]
[1645299565867,1.21159282,2754.7,2754.4,0.38652389]
[1645299566169,1.21159282,2754.7,2754.1,0.00642752]
[1645299566170,4.5431312,2754.5,2754.1,0.00642752]
[1645299566369,0.90865,2754.4,2754.1,0.00642752]
[1645299566566,1.20865,2754.4,2754.1,0.00642752]
[1645299566768,1.20865,2754.4,2753.8,5.00628608]
[1645299566769,6.9087932,2754.3,2753.8,5.00628608]
[1645299566967,8.73307069,2754.3,2753.8,5.00628608]
[1645299567169,0.90879,2754.1,2753.8,5.00628608]
[1645299567375,0.90879,2754.1,2753.1,3.50334448]
[1645299567376,8.0,2753.9,2753.1,3.50334448]
[1645299567626,5.0,2753.6,2753.2,1.54338706]
[1645299567822,0.3,2753.5,2753.1,0.00334448]
[1645299568020,1.3,2753.5,2752.6,1.5434199]
[1645299568220,1.3,2753.5,2753.1,0.00334388]
[1645299568419,0.90888,2753.4,2753.1,0.00334388]
[1645299569124,0.00668749,2753.6,2752.7,3.5]
[1645299569321,0.00668749,2753.7,2752.9,0.69106923]
[1645299569522,0.00668749,2753.8,2753.1,0.00334382]
[1645299569720,0.00668749,2753.8,2753.1,1.54676372]
[1645299569721,0.91522749,2753.8,2753.1,1.54676372]
[1645299570321,0.91522749,2753.8,2753.1,1.5434199]
[1645299570523,0.91522749,2753.8,2753.1,1.54676381]
[1645299571569,0.91522749,2753.8,2753.0,1.5434199]
[1645299571768,0.91522749,2753.8,2753.1,0.00334391]
[1645299572869,0.91522749,2753.8,2753.0,1.5434199]
[1645299573068,0.91522749,2753.8,2753.1,0.00334391]
[1645299573871,0.91522749,2753.8,2753.0,1.5434199]
[1645299574275,0.91522749,2753.8,2753.1,0.00334391]
[1645299574472,0.91522749,2753.8,2753.1,1.54654958]
[1645299574672,0.91522749,2753.8,2753.2,1.54320567]
[1645299574871,0.91522749,2753.8,2753.3,1.54320567]
[1645299575120,0.91522749,2753.8,2753.4,1.54320567]
[1645299575315,0.91522749,2753.8,2753.5,1.54320567]
[1645299575515,0.91522749,2753.8,2753.1,0.00334399]
[1645299576316,0.91522749,2753.8,2752.9,1.54320057]
[1645299576517,0.91522749,2753.8,2753.1,0.00334391]
[1645299577622,0.91522749,2753.8,2752.9,1.54320057]
[1645299577822,0.91522749,2753.8,2753.1,0.00334391]
[1645299578420,0.91522749,2753.8,2753.1,1.54654448]
[1645299578620,0.91522749,2753.8,2753.2,1.54320057]
[1645299578871,0.91522749,2753.8,2753.3,1.54320057]
[1645299579065,0.91522749,2753.8,2753.4,1.54320057]
[1645299579366,0.91522749,2753.8,2753.1,0.00334391]
[1645299579966,0.91522749,2753.8,2752.8,1.54324607]
[1645299580170,0.91522749,2753.8,2753.1,0.00334391]
[1645299581169,0.91522749,2753.8,2752.8,1.54324607]
[1645299581367,0.91522749,2753.8,2753.1,0.00334391]
[1645299582370,0.90878,2753.7,2752.7,1.54324607]
[1645299582644,0.90884,2753.4,2753.1,0.00334391]
[1645299583540,0.90884,2753.4,2753.0,1.54324607]
[1645299583740,0.90884,2753.4,2753.1,0.00334382]
[1645299584242,1.81768,2753.4,2753.1,0.00334382]
[1645299584442,2.7265809,2753.4,2753.1,0.00334382]
[1645299584843,0.90888,2753.1,2752.5,5.04324607]
[1645299585043,0.90888,2753.1,2752.6,1.54324607]
[1645299585243,0.90888,2753.1,2752.7,1.54324607]
[1645299585447,0.90888,2753.1,2752.8,1.54324607]
[1645299585643,0.90888,2753.1,2752.9,1.54324607]
[1645299585844,0.90888,2753.1,2753.0,1.54324607]
[1645299586267,0.90888,2753.1,2752.9,0.00334394]
[1645299587071,0.90888,2753.1,2752.6,1.54324607]
[1645299587268,0.90888,2753.1,2752.7,1.54324607]
[1645299587470,0.90888,2753.1,2752.9,0.00334394]
[1645299588169,1.8178719,2753.1,2752.9,0.00334394]
[1645299588372,0.90898,2752.9,2752.3,1.54324607]
[1645299588568,1.81795,2753.0,2752.9,0.73735851]
[1645299588969,1.81795,2753.0,2752.9,2.28060458]
[1645299607322,0.90897,2753.1,2752.9,2.28060458]
[1645299607525,0.90897,2753.1,2753.0,1.54324607]
[1645299609574,2.0703,2753.6,2753.1,0.73724941]
[1645299609774,0.522,2754.0,2753.2,1.54324607]
[1645299609775,3.1529,2753.9,2753.2,1.54324607]
[1645299609976,1.1577,2754.1,2753.2,1.54324607]
[1645299610174,1.81736,2753.7,2753.2,1.54324607]
[1645299612176,2.72614,2753.7,2753.2,1.54324607]
[1645299613717,3.6349458,2753.7,2753.2,1.54324607]
[1645299616269,0.9089,2753.6,2753.2,1.54324607]
[1645299616470,1.0,2753.6,2753.2,1.54324607]
[1645299616674,1.81782,2753.4,2753.2,1.54324607]
[1645299618273,1.76782,2753.4,2753.2,1.54324607]
[1645299621627,2.67676,2753.4,2753.2,1.54324607]
[1645299622238,3.6357791,2753.7,2753.3,3.5]
[1645299622239,0.90863,2753.7,2753.3,3.5]
[1645299622433,7.2631,2754.0,2753.4,1.54324607]
[1645299622933,7.2631,2754.0,2753.5,3.6814]
[1645299623130,7.2631,2754.0,2753.6,2.15878562]
[1645299623434,7.1446,2754.0,2753.7,1.72464607]
[1645299623629,7.1132,2754.0,2753.8,1.54324607]
[1645299624268,7.1132,2754.0,2753.8,1.49324607]
[1645299624668,7.1132,2754.0,2753.6,0.61553955]
[1645299625067,7.1132,2754.0,2753.7,3.5]
[1645299625468,7.1132,2754.0,2753.6,0.61553955]
[1645299625873,7.1132,2754.0,2753.7,4.40828]
[1645299626669,7.1132,2754.0,2753.7,3.5]
[1645299627076,7.1132,2754.0,2753.6,1.13753955]
[1645299627270,7.1132,2754.0,2753.7,3.5]
[1645299627732,7.1132,2754.0,2753.9,1.10966644]
[1645299630138,7.1132,2754.0,2753.9,4.60966644]
[1645299630335,5.46761238,2754.0,2753.9,4.60966644]
[1645299630738,0.00668749,2754.8,2754.0,6.0]
[1645299630739,0.00335352,2754.6,2754.0,6.0]
[1645299630938,0.00335352,2754.6,2754.0,6.90805]
[1645299631136,0.00335352,2754.6,2754.1,0.46146976]
[1645299631384,0.00335352,2754.6,2754.1,1.36951156]
[1645299631581,0.00668749,2755.5,2754.2,0.522]
[1645299631784,0.00195318,2754.6,2754.2,4.022]
[1645299631987,0.00195318,2754.6,2754.3,0.90805]
[1645299632183,0.00195318,2754.6,2754.3,1.43005]
[1645299632386,0.00195318,2754.6,2754.3,2.34017944]
[1645299632784,0.00668749,2755.6,2754.3,0.52410074]
[1645299632785,0.47851859,2755.2,2754.3,0.52410074]
[1645299632983,0.00781157,2755.1,2754.6,0.53635793]
[1645299633183,0.01449906,2755.1,2754.6,0.53635793]
[1645299633782,0.01449906,2755.1,2754.3,0.00210074]
[1645299633985,0.00668749,2755.1,2754.3,0.00210074]
[1645299634187,0.00195328,2755.0,2754.3,0.00210074]
[1645299634585,0.91013328,2755.0,2754.3,0.00210074]
[1645299634785,0.00668749,2754.9,2754.3,0.00210074]
[1645299635029,0.603624,2754.7,2754.3,0.00210074]
[1645299635229,0.603624,2754.7,2754.1,6.1488]
[1645299635230,0.603624,2754.7,2754.1,5.0]
[1645299635428,0.60697292,2754.7,2754.1,5.0]
[1645299635824,0.90838,2754.6,2754.1,5.0]
[1645299636024,0.90838,2754.6,2754.2,0.46297525]
[1645299636424,0.90838,2754.6,2754.1,5.0]
[1645299636627,0.9117289,2754.6,2754.1,5.0]
[1645299637630,0.603624,2754.7,2754.2,3.5]
[1645299637833,0.00334886,2754.6,2754.1,5.0]
[1645299638884,0.603624,2754.7,2754.1,5.0]
[1645299639079,0.91166617,2754.6,2754.1,5.0]
[1645299639877,0.90831,2754.6,2754.1,5.0]
[1645299640282,0.91166617,2754.6,2754.1,5.0]
[1645299641280,0.90831,2754.6,2754.1,5.0]
[1645299641482,0.00335617,2754.6,2754.1,8.5]
[1645299642286,0.00668749,2754.8,2754.1,8.5]
[1645299642519,0.00668749,2755.2,2754.7,0.58742121]
[1645299642925,0.01342225,2755.1,2754.7,0.58742121]
[1645299643519,0.00668749,2755.2,2754.7,0.58742121]
[1645299643921,0.00335608,2755.0,2754.7,0.58742121]
[1645299644321,0.01004357,2755.0,2754.7,0.58742121]
[1645299644522,0.00335608,2755.0,2754.7,0.58742121]
[1645299644820,0.91481749,2755.1,2754.7,0.58742121]
[1645299645022,0.0033561,2755.0,2754.7,0.58742121]
[1645299645721,0.0033561,2755.0,2754.3,3.5]
[1645299645924,0.90821,2754.8,2754.2,1.2172]
[1645299646123,0.90821,2754.8,2754.1,5.0]
[1645299646871,0.90821,2754.8,2754.4,0.58849859]
[1645299647075,0.0033561,2755.0,2754.5,3.5]
[1645299647273,0.00668749,2755.1,2754.4,0.58849859]
[1645299647472,0.00335623,2754.7,2754.4,0.58849859]
[1645299648370,0.00668749,2755.1,2754.4,0.58849859]
[1645299648572,0.00335625,2754.7,2754.4,0.58849859]
[1645299649573,0.90823,2754.8,2754.4,0.58849859]
[1645299649773,0.00335625,2754.7,2754.4,0.58849859]
[1645299650827,0.00668749,2754.9,2754.4,0.58849859]
[1645299651024,0.00335625,2754.7,2754.4,0.58849859]
[1645299651227,0.00335625,2754.7,2754.1,5.0]
[1645299652123,1.81657,2754.9,2754.1,5.0]
[1645299652323,0.46988123,2754.6,2754.1,5.0]
[1645299653123,0.46652502,2754.6,2754.1,5.0]
[1645299653527,0.46988119,2754.6,2754.1,5.0]
[1645299654173,1.37818119,2754.6,2754.1,5.0]
[1645299654367,1.37482502,2754.6,2754.1,5.0]
[1645299654569,1.37482502,2754.6,2754.1,8.5]
[1645299654769,1.37818119,2754.6,2754.1,5.0]
[1645299654973,1.37818119,2754.6,2754.1,8.49901751]
[1645299655170,1.37818119,2754.6,2754.1,4.99901751]
[1645299655470,0.91165617,2754.6,2754.1,8.49901751]
[1645299655672,0.9083,2754.6,2754.1,8.49901751]
[1645299655871,0.91165617,2754.6,2754.1,8.49901751]
[1645299656470,0.87165617,2754.6,2754.1,8.49901751]
[1645299656672,0.87165617,2754.6,2754.1,4.99901751]
[1645299656873,0.47915806,2754.8,2754.1,8.49901751]
[1645299656874,1.38736806,2754.8,2754.1,8.49901751]
[1645299657071,1.38736806,2754.8,2754.1,4.99901751]
[1645299657072,0.00335617,2754.6,2754.1,4.99901751]
[1645299657272,0.00335617,2754.6,2754.1,8.49901751]
[1645299657724,0.00335617,2754.6,2754.1,4.99901751]
[1645299657922,1.38736806,2754.8,2754.1,4.99901751]
[1645299658323,0.90821,2754.8,2754.1,4.99901751]
[1645299658523,0.00335617,2754.6,2754.1,8.49901751]
[1645299659124,0.86156617,2754.8,2754.1,8.49901751]
[1645299659524,0.00335617,2754.6,2754.1,8.49901751]
[1645299660325,0.90829,2754.6,2754.1,4.99901751]
[1645299662272,0.90829,2754.6,2754.1,8.49901751]
[1645299662570,0.90829,2754.6,2754.1,4.99901751]
[1645299662872,0.90669725,2754.6,2754.1,4.99901751]
[1645299664075,0.90669725,2754.6,2754.2,1.54270821]
[1645299664471,0.00335605,2754.7,2754.2,1.54270821]
[1645299665120,1.81657,2754.9,2754.2,1.54270821]
[1645299665521,0.00335612,2754.7,2754.2,1.54270821]
[1645299665721,0.9083,2754.6,2754.2,1.54270821]
[1645299667623,1.81657,2754.9,2754.2,1.54270821]
[1645299667823,0.00335609,2754.7,2754.2,1.54270821]
[1645299668875,1.81657,2754.9,2754.2,1.54270821]
[1645299669076,0.00335612,2754.7,2754.2,1.54270821]
[1645299669275,0.00335612,2754.7,2754.2,5.04270821]
[1645299669572,0.00335612,2754.7,2754.3,1.54270821]
[1645299669573,0.91163612,2754.7,2754.3,1.54270821]
[1645299669773,0.91163612,2754.7,2754.4,1.54270821]
[1645299669970,0.90828,2754.7,2754.5,1.54270821]
[1645299670170,0.91163616,2754.7,2754.1,4.99901751]
[1645299670371,0.91163616,2754.7,2754.2,1.54271494]
[1645299671170,0.90828,2754.7,2754.2,1.54271494]
[1645299671370,0.91163612,2754.7,2754.2,1.54271494]
[1645299672370,0.90828,2754.7,2754.2,1.54271494]
[1645299672623,0.91163612,2754.7,2754.2,1.54271494]
[1645299673626,0.90828,2754.7,2754.2,1.54271494]
[1645299673829,0.91163612,2754.7,2754.2,1.54271494]
[1645299674728,0.90828,2754.7,2754.2,1.54271494]
[1645299675128,0.91163612,2754.7,2754.2,1.54271494]
[1645299675930,0.90828,2754.7,2754.2,1.54271494]
[1645299676129,0.91163612,2754.7,2754.2,1.54271494]
[1645299677176,0.90828,2754.7,2754.2,1.54271494]
[1645299677474,0.91163612,2754.7,2754.2,1.54271494]
[1645299678474,0.90828,2754.7,2754.2,1.54271494]
[1645299678672,0.91163612,2754.7,2754.2,1.54271494]
[1645299679274,0.91163612,2754.7,2754.5,0.48314414]
[1645299679473,0.91163612,2754.7,2754.6,1.54271494]
[1645299679679,0.00668749,2754.8,2754.6,1.54271494]
[1645299679876,0.00335623,2754.7,2754.6,1.54271494]
[1645299680522,0.00335623,2754.7,2754.2,1.54271494]
[1645299680724,0.00668749,2754.9,2754.3,1.54271494]
[1645299680923,0.00668749,2754.9,2754.4,1.54271494]
[1645299681127,0.0033562,2754.8,2754.5,1.54271494]
[1645299681323,0.0033562,2754.8,2754.6,1.54271494]
[1645299681524,0.0033562,2754.8,2754.2,1.54271494]
[1645299681722,0.90825,2754.7,2754.3,1.54262156]
[1645299681923,0.91493749,2754.7,2754.4,1.54262156]
[1645299682122,0.90825,2754.7,2754.5,1.54262156]
[1645299682328,0.91829365,2754.7,2754.6,1.54262156]
[1645299682523,0.91160616,2754.7,2754.5,1.54262156]
[1645299682722,0.91160616,2754.7,2754.6,1.54262156]
[1645299682924,0.91160616,2754.7,2754.5,1.54262156]
[1645299683124,0.90825,2754.7,2754.5,1.54262156]
[1645299684569,0.91160623,2754.7,2754.5,1.54262156]
[1645299685570,0.90825,2754.7,2754.5,1.54120333]
[1645299685769,0.91160623,2754.7,2754.1,4.99901751]
[1645299686769,0.90825,2754.7,2754.1,4.99901751]
[1645299687171,0.91160609,2754.7,2754.1,4.99901751]
[1645299687933,0.90825,2754.7,2754.1,5.63125311]
[1645299688131,0.91160609,2754.7,2754.1,5.63125311]
[1645299688531,0.91829358,2754.7,2754.1,5.63125311]
[1645299689134,0.91493749,2754.7,2754.1,5.63125311]
[1645299689531,0.91829358,2754.7,2754.1,5.63125311]
[1645299690137,0.91829358,2754.7,2754.2,3.5]
[1645299690333,0.91493749,2754.7,2754.2,3.5]
[1645299690535,0.91493749,2754.7,2754.1,5.63125311]
[1645299690733,0.91829358,2754.7,2754.1,5.63125311]
[1645299691575,0.91493749,2754.7,2754.1,5.63125311]
[1645299691774,0.91829358,2754.7,2754.1,5.63125311]
[1645299691972,0.91829358,2754.7,2754.2,3.5]
[1645299692577,0.91829358,2754.7,2754.1,6.32232234]
[1645299692779,0.91493749,2754.7,2754.1,6.32232234]
[1645299692977,0.91829361,2754.7,2754.1,6.32232234]
[1645299693177,0.91829361,2754.7,2754.2,3.5]
[1645299693981,0.91493749,2754.7,2754.2,3.5]
[1645299694177,0.91829361,2754.7,2754.2,3.5]
[1645299695125,0.91493749,2754.7,2754.1,6.32232234]
[1645299695527,0.91829361,2754.7,2754.1,6.32232234]
[1645299696426,0.91493749,2754.7,2754.1,6.32232234]
[1645299696625,0.91829358,2754.7,2754.1,6.32232234]
[1645299697228,0.91829358,2754.7,2754.2,3.5]
[1645299697428,0.01004358,2754.7,2754.2,4.19106923]
[1645299697628,0.91486749,2754.9,2754.2,4.19106923]
[1645299697937,0.00335612,2754.7,2754.3,0.69106923]
[1645299698229,0.01342136,2755.4,2754.8,0.00671224]
[1645299698230,0.00668749,2755.3,2754.8,0.00671224]
[1645299698429,0.01342136,2755.4,2754.8,0.00671224]
[1645299698630,0.01342136,2755.4,2754.8,3.50671224]
[1645299698888,0.00668749,2755.6,2754.8,3.50671224]
[1645299698889,0.00668749,2755.6,2754.8,0.00671224]
[1645299699082,0.61457137,2755.6,2754.9,0.50923193]
[1645299699883,1.52255137,2755.6,2754.8,0.00671224]
[1645299700283,1.81815839,2755.4,2754.8,0.00671224]
[1645299700487,0.00668749,2755.3,2754.8,0.00671224]
[1645299701087,0.91479749,2755.3,2754.8,0.00671224]
[1645299701487,0.91013839,2755.2,2754.8,0.00671224]
[1645299702286,0.47970004,2754.9,2754.8,0.00671224]
[1645299702527,2.95671,2755.4,2754.8,0.00671224]
[1645299702528,0.91476749,2755.1,2754.8,0.00671224]
[1645299702729,0.91143602,2755.1,2754.8,0.00671224]
[1645299703530,0.90808,2755.1,2754.8,0.00671224]
[1645299703928,0.91143605,2755.1,2754.8,0.00671224]
[1645299704330,0.76143605,2755.1,2754.8,0.55598285]
[1645299704728,0.75808,2755.1,2754.8,0.55598285]
[1645299705129,0.76143605,2755.1,2754.8,0.55598285]
[1645299705732,0.76143605,2755.1,2754.9,1.54243853]
[1645299705930,0.75808,2755.1,2754.9,1.54243853]
[1645299706388,0.76143602,2755.1,2754.9,1.54243853]
[1645299707188,0.75808,2755.1,2754.9,1.54243853]
[1645299707388,0.76143602,2755.1,2754.9,1.54243853]
[1645299708490,0.75808,2755.1,2754.9,1.54243853]
[1645299708690,0.76143602,2755.1,2754.9,1.54243853]
[1645299709491,1.66965602,2755.1,2754.9,1.54243853]
[1645299709690,1.81644,2755.0,2754.9,1.54243853]
[1645299710129,0.76143602,2755.1,2754.9,1.54243853]
[1645299710331,0.00335602,2755.1,2754.9,1.54243853]